Cogmind - Beta 9.4 @@@ ROGUE MODE // 2020.02.16 @ 21:45:35 // Winter2019/RPGLIKE Player: Exeight Result: Destroyed by Y-54 Guardian with Flak Gun Performance ------------- Evolutions (3) 1500 Regions Visited (6) 1200 Robots Destroyed (135) 675 Value Destroyed (4115) 4115 Prototype IDs (25) 500 Alien Tech Used (0) 0 Bonus (802) 802 TOTAL SCORE: 8792 Bonus ------- High Alert Combat Kills 419 Follower Combat Kills 161 Aligned with FarCom 300 Friendly Fire -78 Cogmind --------- Core Integrity 0/600 Matter 4/300 Energy 150/150 System Corruption 2% Temperature Cool (6) Movement Treading (185) Ox1 Location -7/Factory Parts ------- > --- POWER (1) -------- Light Angular Momentum Engine > --- PROPULSION (2) --- Armored Treads Medium Treads > --- UTILITY (8) ------ Coolant Injector Improved Targeting Computer Advanced Targeting Computer Advanced Targeting Computer Target Analyzer Target Analyzer Weapon Cycler Weapon Cycler > --- WEAPON (7) ------- Flak Gun Mass Driver Mass Driver Mass Driver Mass Driver Mass Driver Mass Driver > --- INVENTORY (0) ---- (None) Peak State ------------ > --- POWER ------------ Light Angular Momentum Engine > --- PROPULSION ------- Armored Treads Medium Treads > --- UTILITY ---------- Coolant Injector Improved Targeting Computer Advanced Targeting Computer Advanced Targeting Computer Target Analyzer Target Analyzer Weapon Cycler Weapon Cycler > --- WEAPON ----------- Flak Gun Mass Driver Mass Driver Mass Driver Mass Driver Mass Driver Mass Driver > --- INVENTORY -------- (None) [Rating: 78] Favorites ----------- Power Light Nuclear Core Engine Ion Engine Power Core Light Nuclear Core Propulsion Light Treads Treads Light Treads Utility Advanced Targeting Computer Device Improved Heat Sink Processor Advanced Targeting Computer Weapon Gauss Rifle Energy Gun Beamcaster Energy Cannon Beam Cannon Ballistic Gun Gauss Rifle Ballistic Cannon Mass Driver Build | -11 -10 -10 -10 -9 -8 -7 ------- Run | Scr Mat Min Exi Min Mat Fac Slots Evolved 14 | 3 . 1 . . 4 6 Power . | . . . . . . . Propulsion 1 | 1 . . . . . . Utility 7 | . . 1 . . 3 3 Weapon 6 | 2 . . . . 1 3 Parts Attached 48 | 6 3 1 1 1 16 20 Power 5 | 1 . . . 1 . 3 Engine 4 | 1 . . . . . 3 Core 1 | . . . . 1 . . Reactor . | . . . . . . . Propulsion 6 | 2 . . . . 3 1 Treads 6 | 2 . . . . 3 1 Leg . | . . . . . . . Wheel . | . . . . . . . Hover . | . . . . . . . Flight . | . . . . . . . Utility 13 | . 1 1 . . 3 8 Device 8 | . 1 1 . . . 6 Storage . | . . . . . . . Processor 5 | . . . . . 3 2 Hackware . | . . . . . . . Protection . | . . . . . . . Artifact . | . . . . . . . Weapon 24 | 3 2 . 1 . 10 8 Energy Gun 5 | 2 . . . . 3 . Energy Cannon 1 | . 1 . . . . . Ballistic Gun 10 | 1 1 . 1 . 6 1 Ballistic Cannon 8 | . . . . . 1 7 Launcher . | . . . . . . . Special Weapon . | . . . . . . . Impact Weapon . | . . . . . . . Slashing Weapon . | . . . . . . . Piercing Weapon . | . . . . . . . Special Melee Weapon . | . . . . . . . Unidentified Prototypes 3 | . . . . . 2 1 Parts Lost . | . . . . . . . Power . | . . . . . . . Propulsion . | . . . . . . . Utility . | . . . . . . . Weapon . | . . . . . . . Highest Loss Streak . | . . . . . . . Average Slot Usage (%) 95 | . 95 100 94 86 92 99 Engine 5 | . 14 13 12 . . 4 Core 3 | . . . . 11 9 1 Treads 20 | . 28 27 25 25 19 13 Device 18 | . 9 14 25 25 19 18 Processor 13 | . . . . . 12 29 Energy Gun 4 | . 2 . . . 9 5 Energy Cannon 5 | . 12 13 12 12 . . Ballistic Gun 18 | . 26 27 19 12 18 15 Ballistic Cannon 3 | . . . . . 1 7 Naked Turns . | . . . . . . . Heaviest Build 70 | 10 13 14 20 20 27 70 Greatest Support 48 | 40 40 40 40 40 46 48 Greatest Overweight (x) 1 | . . . . . 1 1 Average Overweight (x) . | . . . . . . . Largest Inventory Capacity . | . . . . . . . Average Capacity . | . . . . . . . Most Carried . | . . . . . . . Average Carried . | . . . . . . . Final Capacity . | . . . . . . . Final Carried . | . . . . . . . Class Distribution -------------------- 39% | Gunner 37% | Scavenger-Gunner 14% | Skirmisher 4% | Machinist-Executioner Dominant Class ---------------- Gunner | -10/Materials Gunner | -10/Mines Gunner | -10/Exiles Skirmisher | -9/Mines Scavenger-Gunner | -8/Materials Scavenger-Gunner | -7/Factory Resources | -11 -10 -10 -10 -9 -8 -7 ----------- Run | Scr Mat Min Exi Min Mat Fac Matter Collected 2008 | 260 294 144 . 30 407 873 Remotely . | . . . . . . . Salvage Created 4484 | . 451 268 . 257 1880 1628 Parts 284 | . 47 31 . 15 109 82 Haulers Intercepted 9 | . 2 . . . 4 3 Recyclers Shooed . | . . . . . . . Parts Field Recycled . | . . . . . . . Retrieved Matter . | . . . . . . . Parts Self-Destructed . | . . . . . . . Prevented . | . . . . . . . Kills | -11 -10 -10 -10 -9 -8 -7 ------- Run | Scr Mat Min Exi Min Mat Fac Combat Hostiles Destroyed 99 | . 15 12 . 7 34 31 Guns 73 | . 5 5 . 6 33 24 Cannons 25 | . 10 7 . 1 1 6 AOE 1 | . . . . . . 1 Classes Destroyed 13 | . 7 . . 1 4 1 Worker 9 | . 1 . . . 6 2 Builder 4 | . 1 . . 1 1 1 Hauler 9 | . 2 . . . 4 3 Operator 6 | . 1 . . . 4 1 Watcher 8 | . 1 . . . 5 2 Swarmer 30 | . 6 9 . 4 7 4 Grunt 42 | . 9 3 . 2 11 17 Brawler 3 | . . . . . 2 1 Duelist 5 | . . . . 1 3 1 Protector 2 | . . . . . 1 1 Sentry 11 | . . . . . 8 3 Hunter 2 | . . . . . 2 . Programmer 4 | . . . . . . 4 Best Kill Streak 15 | . 5 3 . 2 15 6 Combat Bots Only 8 | . 4 3 . 2 8 4 Max Kills in Single Turn 5 | . 2 1 . 1 5 2 Gunslinging 1 | . . . . . . 1 Exploded 1 | . . . . . . 1 Melee . | . . . . . . . Uniques/NPCs Destroyed . | . . . . . . . Combat | -11 -10 -10 -10 -9 -8 -7 -------- Run | Scr Mat Min Exi Min Mat Fac Damage Taken 2494 | . 331 269 . 35 438 1421 Core 1976 | . 268 208 . 26 358 1116 Absorbed by Shields . | . . . . . . . Redirected to Core 1656 | . 206 172 . 26 277 975 Core Remaining (%) 100 | 100 . . . 100 100 . Volleys Fired 188 | . 50 20 . 8 46 64 Largest 6 | . 3 3 . 1 4 6 Hottest 342 | . 110 100 . 60 159 342 Shots Fired 693 | . 150 60 . 22 201 260 Gun 554 | . 104 40 . 14 199 197 Cannon 139 | . 46 20 . 8 2 63 Launcher . | . . . . . . . Special . | . . . . . . . Kinetic 513 | . 96 40 . 14 162 201 Thermal 180 | . 54 20 . 8 39 59 Explosive . | . . . . . . . Electromagnetic . | . . . . . . . Robot Hit Streak 41 | . 8 18 . 7 39 41 Robot Miss Streak 11 | . 11 2 . 1 3 1 Penetration Max 1 | . . . . . 1 1 Secondary Targets 3 | . . . . . 1 2 Max Gunslinging Chain 1 | . . . . . 1 1 Autonomous 112 | . . . . 14 98 . Shots Hit Robots 451 | . 67 37 . 17 164 166 Core Hits 195 | . 27 16 . 8 70 74 Critical Hits 13 | . 1 . . . 6 6 Critical Kills 6 | . . . . . 2 4 Critical Parts Destroyed 7 | . 1 . . . 4 2 Melee Attacks . | . . . . . . . Impact . | . . . . . . . Slashing . | . . . . . . . Piercing . | . . . . . . . Sneak Attacks . | . . . . . . . Combat Hostiles . | . . . . . . . Follow-up Attacks . | . . . . . . . Damage Inflicted 11001 | . 866 520 . 579 4686 4350 Guns 7593 | . 378 222 . 463 3799 2731 Cannons 2098 | . 488 298 . 104 52 1156 Explosions 1298 | . . . . . 835 463 Melee . | . . . . . . . Ramming 12 | . . . . 12 . . Kinetic 7062 | . 366 222 . 463 3188 2823 Thermal 3719 | . 500 298 . 104 1498 1319 Explosive 131 | . . . . . . 131 Electromagnetic 77 | . . . . . . 77 Impact . | . . . . . . . Slashing . | . . . . . . . Piercing . | . . . . . . . Highest Corruption 2 | . . . . . . 2 Average Corruption 1 | . . . . . . 1 Corruption Purged . | . . . . . . . Effects 22 | . . . . . . 22 Message Errors 8 | . . . . . . 8 Heat Flow Errors 2 | . . . . . . 2 Energy Discharges 3 | . . . . . . 3 Data Loss (minor) 4 | . . . . . . 4 Targeting Errors 4 | . . . . . . 4 Weapon Failures 1 | . . . . . . 1 Overload Shots . | . . . . . . . Overflow Damage 118 | . . . . . 90 28 Projectiles 1 | . . . . . . 1 Explosions 117 | . . . . . 90 27 Melee . | . . . . . . . Knockbacks 5 | . . . . . . 5 Impact . | . . . . . . . Kinetic 4 | . . . . . . 4 Secondary 1 | . . . . . . 1 Self-Inflicted Damage 105 | . . . . . . 105 Shots 2 | . . . . . . 2 Rammed . | . . . . . . . Targets Rammed 1 | . . . . 1 . . Kicked . | . . . . . . . Crushed 1 | . . . . 1 . . Highest Temperature 498 | . 172 36 . . 93 498 Average Temperature 78 | . 42 15 . . 30 122 Received Heat Transfer 762 | . 111 51 . 6 153 441 Effects 1 | . . . . . . 1 Shutdowns 1 | . . . . . . 1 Siege Activations . | . . . . . . . Robots Corrupted . | . . . . . . . Combat Hostiles . | . . . . . . . Parts Fried . | . . . . . . . Impact Corruptions . | . . . . . . . Robots Melted . | . . . . . . . Combat Hostiles . | . . . . . . . Parts Melted 6 | . 2 1 . 1 2 . Heat Transferred 5540 | . 1073 629 . 222 1698 1918 Parts Sabotaged . | . . . . . . . Parts Stolen . | . . . . . . . Parts Stripped . | . . . . . . . Power Chain Reactions . | . . . . . . . Missiles Intercepted . | . . . . . . . Alert | -11 -10 -10 -10 -9 -8 -7 ------- Run | Scr Mat Min Exi Min Mat Fac Peak Influence 1175 | . 272 303 . 238 773 1175 Average Influence 333 | . 132 140 . 101 452 486 Maximum Alert Level 4 | . 1 1 . 1 3 4 Low Security (%) 33 | 100 71 70 . 77 17 . Level 1 37 | . 28 29 . 22 15 61 Level 2 21 | . . . . . 58 24 Level 3 3 | . . . . . 7 5 Level 4 3 | . . . . . . 8 Level 5 . | . . . . . . . High Security . | . . . . . . . Max Security . | . . . . . . . Squads Dispatched 15 | . 4 . . . 3 8 Investigation 6 | . 2 . . . 1 3 Extermination 3 | . . . . . . 3 Reinforcement 4 | . 2 . . . 1 1 Assault 2 | . . . . . 1 1 Garrison . | . . . . . . . Intercept . | . . . . . . . Construction Impeded . | . . . . . . . Haulers Reinforced . | . . . . . . . Stealth | -11 -10 -10 -10 -9 -8 -7 --------- Run | Scr Mat Min Exi Min Mat Fac Distress Signals 1 | . . . . . 1 . Communications Jammed . | . . . . . . . Distress Signals . | . . . . . . . Times Spotted 137 | . 25 15 . 13 44 40 Peak Tracking Total 5 | . 4 3 . 3 5 5 Tactical Retreats 7 | . 3 . . 1 1 2 Traps | -11 -10 -10 -10 -9 -8 -7 ------- Run | Scr Mat Min Exi Min Mat Fac Traps Triggered 4 | . 2 . . . 1 1 Indirectly . | . . . . . . . Trap Hack Attempts . | . . . . . . . Triggered . | . . . . . . . Disarmed . | . . . . . . . Reprogrammed . | . . . . . . . Reused . | . . . . . . . Traps Extracted . | . . . . . . . Installed . | . . . . . . . Triggered 1 | . . 1 . . . . Machines | -11 -10 -10 -10 -9 -8 -7 ---------- Run | Scr Mat Min Exi Min Mat Fac Machines Disabled 29 | . 2 2 . 1 12 12 Max in Single Turn 7 | . 1 1 . 1 7 2 Garrison Access 2 | . . . . . . 2 Machines Sabotaged . | . . . . . . . Garrisons Compromised . | . . . . . . . Overloaded Fab Kills . | . . . . . . . Fab Network Shutdowns 1 | . . . . . . 1 Hacking | -11 -10 -10 -10 -9 -8 -7 --------- Run | Scr Mat Min Exi Min Mat Fac Machines Accessed 14 | . . . 1 . 2 11 Terminals 7 | . . . . . 2 5 Fabricators 4 | . . . . . . 4 Repair Stations . | . . . . . . . Recycling Units . | . . . . . . . Scanalyzers . | . . . . . . . Garrison Access 2 | . . . . . . 2 Total Hacks 33 | . . . 1 . 3 29 Successful 16 | . . . 1 . 1 14 Failed 17 | . . . . . 2 15 Catastrophic 4 | . . . . . . 4 Database Lockouts . | . . . . . . . Manual 10 | . . . 1 . 3 6 Terminals 13 | . . . . . 3 10 Fabricators 15 | . . . . . . 15 Repair Stations . | . . . . . . . Recycling Units . | . . . . . . . Scanalyzers . | . . . . . . . Garrison Access 4 | . . . . . . 4 Terminal Hacks 5 | . . . 1 . 1 3 Part Schematic 1 | . . . . . . 1 Robot Schematic 2 | . . . . . . 2 Branch Access Points 1 | . . . . . 1 . EX-Prototype ID Bank 1 | . . . 1 . . . Fabricator Hacks 9 | . . . . . . 9 Load Schematic 2 | . . . . . . 2 Build 7 | . . . . . . 7 Repair Station Hacks . | . . . . . . . Recycling Unit Hacks . | . . . . . . . Scanalyzer . | . . . . . . . Garrison Access Hacks 2 | . . . . . . 2 Seal Access 2 | . . . . . . 2 Unauthorized Hacks . | . . . . . . . Terminals . | . . . . . . . Fabricators . | . . . . . . . Repair Stations . | . . . . . . . Recycling Units . | . . . . . . . Scanalyzers . | . . . . . . . Garrison Access . | . . . . . . . Data Cores Recovered . | . . . . . . . Used . | . . . . . . . Hacking Detections 10 | . . . . . 1 9 Full Trace Events 2 | . . . . . . 2 Feedback Events . | . . . . . . . Feedback Blocked . | . . . . . . . Robot Schematics Acquired 2 | . . . . . . 2 Robots Built 6 | . . . . . . 6 Matter 372 | . . . . . . 372 Time 198 | . . . . . . 198 Total Robot Build Rating 12 | . . . . . . 12 Part Schematics Acquired 1 | . . . . . . 1 Parts Built 6 | . . . . . . 6 Matter 636 | . . . . . . 636 Time 318 | . . . . . . 318 Total Part Build Rating 36 | . . . . . . 36 Parts Repaired . | . . . . . . . Time . | . . . . . . . Parts Recycled . | . . . . . . . Recycled Matter . | . . . . . . . Retrieved Matter . | . . . . . . . Retrieved Components . | . . . . . . . Parts Scanalyzed . | . . . . . . . Part Schematics Acquired . | . . . . . . . Parts Damaged . | . . . . . . . Bothacking | -11 -10 -10 -10 -9 -8 -7 ------------ Run | Scr Mat Min Exi Min Mat Fac Used RIF Installer . | . . . . . . . Robots Hacked . | . . . . . . . Non-combat . | . . . . . . . Combat . | . . . . . . . Robot Hacks Applied . | . . . . . . . Relay Couplers Released . | . . . . . . . Robots Rewired . | . . . . . . . Allies Hacked . | . . . . . . . Hacks Repelled . | . . . . . . . Allies | -11 -10 -10 -10 -9 -8 -7 -------- Run | Scr Mat Min Exi Min Mat Fac Total Allies 11 | . . 3 . 2 . 6 Largest Group 6 | . . 3 3 4 3 6 Highest-Rated Group 108 | . . 40 40 78 70 108 Highest-Rated Ally 31 | . . 16 16 31 31 18 Total Orders . | . . . . . . . Ally Attacks 54 | . . 5 . 31 9 9 Total Damage 940 | . . 53 . 439 125 323 Kills 10 | . . 1 . 6 2 1 Allies Corrupted . | . . . . . . . Allies Melted . | . . . . . . . Intel | -11 -10 -10 -10 -9 -8 -7 ------- Run | Scr Mat Min Exi Min Mat Fac Robot Analysis Total . | . . . . . . . Derelict Logs Recovered 3 | . . 1 . 2 . . Drone Launches . | . . . . . . . Drone Recoveries . | . . . . . . . Exploration | -11 -10 -10 -10 -9 -8 -7 ------------- Run | Scr Mat Min Exi Min Mat Fac Turns Passed 8789 | 76 1105 1132 344 1075 1790 3267 Spaces Moved 4383 | 46 556 630 214 616 941 1380 Core 5 | 5 . . . . . . Treads 4378 | 41 556 630 214 616 941 1380 Legs . | . . . . . . . Wheels . | . . . . . . . Hover . | . . . . . . . Flight . | . . . . . . . Fastest Speed 50 | 50 160 160 160 160 160 165 Average Speed 163 | 148 160 160 160 160 161 168 Slowest Speed 185 | 160 160 160 160 160 180 185 Overloaded Moves . | . . . . . . . Propulsion Burnouts . | . . . . . . . Robots Hopped . | . . . . . . . Cave-ins Triggered . | . . . . . . . Exploration Rate (%) 68 | 4 84 100 59 97 89 43 Regions Visited 6 Branch Regions 3 Pre-discovered Areas . | . . . . . . . Known Exits Taken 1 | . . . . . 1 . Unknown Exits Taken 5 | 1 1 1 1 1 . . Scrap Searched 2 | . . 1 . 1 . . Spaces Dug . | . . . . . . . Terrain Destroyed 142 | . . . . 14 45 83 Melee . | . . . . . . . Projectile 64 | . . . . 14 29 21 AOE 78 | . . . . . 16 62 Actions | -11 -10 -10 -10 -9 -8 -7 --------- Run | Scr Mat Min Exi Min Mat Fac Total 5659 | 51 659 709 216 697 1121 2206 Wait 927 | . 32 52 . 60 84 699 Move 4377 | 45 555 629 213 615 940 1380 Hop . | . . . . . . . Pick Up . | . . . . . . . Fast Attach 48 | 6 3 1 1 1 16 20 Attach . | . . . . . . . Detach . | . . . . . . . Swap . | . . . . . . . Drop 30 | . 2 . 2 1 11 14 Fire 188 | . 50 20 . 8 46 64 Melee . | . . . . . . . Ram . | . . . . . . . Kick . | . . . . . . . Crush 1 | . . . . 1 . . Escape Stasis . | . . . . . . . Rewire . | . . . . . . . Trap . | . . . . . . . Miscellaneous 88 | . 17 7 . 11 24 29 Route ------- -11/Scrapyard -10/Materials (discovered 4 exits: [*Mat x2] / [*Min x2]) -10/Mines (discovered 3 exits: [*Mat x2] / *Exi) -10/Exiles -9/Mines (discovered 2 exits: *Mat x2) -8/Materials (discovered 3 exits: *Fac x3) -7/Factory (discovered 4 exits: [*Fac x3] / [*Sto]) History --------- Turn | Location | Event 1 | -11/Scrapyard | Upgraded with Propulsion slot (x1) 1 | -11/Scrapyard | Upgraded with Weapon slot (x2) 3 | -11/Scrapyard | Discovered new exit (range 15) 77 | -11/Scrapyard | Entered Materials 302 | -10/Materials | Build established: Gunner 633 | -10/Materials | Discovered new exit (range 16) 779 | -10/Materials | Reached level 2 869 | -10/Materials | Discovered new exit (range 15) 931 | -10/Materials | Discovered new exit (range 5) 989 | -10/Materials | Discovered new exit (range 4) 1182 | -10/Materials | Entered Mines 1244 | -10/Mines | Reached level 3 1287 | -10/Mines | Deemed a non-threat by the Exiles lab entrance 1287 | -10/Mines | Discovered new exit (range 5) 1370 | -10/Mines | Discovered new exit (range 8) 1512 | -10/Mines | Learned 2 Materials zone layouts 1764 | -10/Mines | Discovered new exit (range 5) 2050 | -10/Mines | Assisted by bots powering up and referring to "LRC-V3" 2277 | -10/Mines | Upgraded with Utility slot (x1) 2314 | -10/Mines | Entered Exiles 2314 | -10/Exiles | Accompanied by 3 allies 2316 | -10/Exiles | Reached level 4 2353 | -10/Exiles | Met 8R-AWN 2382 | -10/Exiles | Met EX-HEX 2433 | -10/Exiles | Met EX-BIN 2450 | -10/Exiles | Aligned with FarCom system 2452 | -10/Exiles | Given EX-Vault access code 2489 | -10/Exiles | Opened EX-Vault 2501 | -10/Exiles | Found AWS/Gauss 2538 | -10/Exiles | Warned to stay clear of 0b10 Research branches 2583 | -10/Exiles | Met EX-DEC 2635 | -10/Exiles | Discovered new exit (range 14) 2658 | -10/Exiles | Left Exiles lab with AWS/Gauss 2658 | -10/Exiles | Entered Mines 2658 | -9/Mines | Accompanied by 3 allies 2793 | -9/Mines | Reached level 5 2802 | -9/Mines | Received a Rocket Launcher from a helpful Derelict 2961 | -9/Mines | Build established: Skirmisher 2970 | -9/Mines | Learned 2 Materials zone layouts 3031 | -9/Mines | Discovered new exit (range 8) 3588 | -9/Mines | Discovered new exit (range 8) 3733 | -9/Mines | Entered Materials 3733 | -8/Materials | Accompanied by 3 allies 3734 | -8/Materials | Identified exit to Factory 3735 | -8/Materials | Reached level 6 3743 | -8/Materials | Led the pair of lost Derelicts to an unsafe place 3916 | -8/Materials | Upgraded with Utility slot (x1) 4047 | -8/Materials | Reached level 7 4076 | -8/Materials | Discovered exit to Factory (range 13) 4092 | -8/Materials | Upgraded with Weapon slot (x1) 4112 | -8/Materials | Destroyed 8 combat bots 4126 | -8/Materials | Reached level 8 4407 | -8/Materials | Build established: Scavenger-Gunner 4464 | -8/Materials | Discovered exit to Factory (range 11) 4713 | -8/Materials | Reached level 9 4962 | -8/Materials | Upgraded with Utility slot (x1) 5182 | -8/Materials | Upgraded with Utility slot (x1) 5333 | -8/Materials | First assault squad dispatched 5333 | -8/Materials | Reached level 10 5523 | -8/Materials | Entered Factory 5525 | -7/Factory | Reached level 11 5745 | -7/Factory | Discovered new exit (range 8) 6061 | -7/Factory | Upgraded with Utility slot (x1) 6091 | -7/Factory | Upgraded with Utility slot (x1) 6132 | -7/Factory | Reached level 12 6454 | -7/Factory | Discovered new exit (range 9) 6555 | -7/Factory | Discovered new exit (range 11) 6694 | -7/Factory | Upgraded with Utility slot (x1) 6966 | -7/Factory | Fabricated L-31 Rogue (x3) 7065 | -7/Factory | Fabricated L-31 Rogue (x3) 7241 | -7/Factory | Reached level 13 7582 | -7/Factory | Build established: Gunner 7822 | -7/Factory | Reached level 14 7923 | -7/Factory | First assault squad dispatched 7971 | -7/Factory | Fabricated Mass Driver (x2) 8012 | -7/Factory | Core integrity fell below 50% 8186 | -7/Factory | Fabricated Mass Driver (x2) 8191 | -7/Factory | Upgraded with Weapon slot (x2) 8297 | -7/Factory | Fabricated Mass Driver (x2) 8304 | -7/Factory | Upgraded with Weapon slot (x1) 8315 | -7/Factory | Local fabrication network quarantined 8599 | -7/Factory | Build established: Machinist-Executioner 8634 | -7/Factory | Discovered new exit (range 16) 8776 | -7/Factory | Core integrity fell below 20% 8790 | -7/Factory | Destroyed by Y-54 Guardian with Flak Gun Last Messages --------------- Slug penetrates Y-54 Guardian. Y-54 Guardian destroyed. Terminal disabled. Slug penetrates Terminal. Slug penetrates Matter Pump. Matter Pump disabled. O-24 Administrator: "IFF HANDSHAKE FAILED. SECURING TERMINAL." Acquired 25 matter. Acquired Flak Gun. Acquired 5 matter. Acquired 3 matter. K-01 Serf cleans the Matter Pump. NC0KSAS5WQ0|T<:GORHDEXHIHLGQL775 EXIT=FOUND TAZ Y BZ4AX2XA8 Slug penetrates Y-54 Guardian. Matter Pump disabled. K-01 Serf collects debris. System corrupted: Component data lost. Map ----- +----------------------------------------------------+ | ?????????????????????????????????????????????????? | | ?????????????????????????????????????????????????? | | ?????????????????????????????????????????????????? | | ?????????????????????????????????????????????????? | | ?????????????????????????????????????????????????? | | ?????????????????????????????????????????????????? | | ?????????????????????????????????????????????????? | | ?????????????????????????????????????????????????? | | ?????????????????????????????????????????????????? | | ???????????????o?????????????????????????????????? | | ?????????????????????????????????????????????????? | | ????????????????????? ?????????????????????????? | | ??????????????????# ?????????????????????????? | | ??????????????????# ?????????????????????????? | | ??????????????????# ?????????????????????????? | | ??????????????????# #????????????????????????? | | ??????????????????# #????????????????????????? | | ??????????????????# #????????????????????????? | | ??????????????????# #????????????????????????? | | ??????????????????# #????????????????????????? | | ??????????????????# #????????????????????????? | | ??????????????????# ########################## | | ??????????????????# | | ??????????????????# | | ??????????????????# r """ """ | | ??????????????????# @ """ """ | | ??????????????????# Y %%"" """ | | ????????????????######+########;##; #### % | | ????????????????# ]* #?##### #??# """ """ | | ????????????????# ]* #???### #### """ """ | | ????????????????+ ]* #???# ## """ """ | | ????????????????# #####w ## | | ????????????????# / ## """ """ | | ????????????????# ##### ## """ """ | | ????????????????# #???# ## """ """ | | ????????????????#############???######## | | ???????????????????????????????????????# """ """ | | ???????????????????????????????????????# """ """ | | ???????????????????????????????????????# """ """ | | ???????????????????????????????????????# | | ???????????????????????????????????????# """ """ | | ???????????????????????????????????????? """ """ | | ???????????????????????????????????????# """ """ | | ???????????????????????????????????????# | | ???????????????????????????????????????# """ """ | | ????????????????????????????????????????? """ """ | | ???????????????????????????????????????+ """ " | | ???????????????????????????????????????# | | ???????????????????????????????????????# """ """ | | ???????????????????????????????????????# """ """ | +----------------------------------------------------+ Best States ------------- Heat Dissipation 53 Coolant Potential 65 Energy Generation 18 Energy Capacity 310 Matter Stores 300 Matter Capacity 300 Sight Range 16 Terrain Scan Density 10 Weapon Cycling 30 Evasion (%) 40 Targeting Accuracy 22 Target Analysis 5 Recoil Reduction 2 Item Schematics ----------------- Mass Driver | -7/Factory | Hacked Robot Schematics ------------------ K-01 Serf | -7/Factory | Hacked L-31 Rogue | -7/Factory | Hacked Fabricated ------------ L-31 Rogue | x3 | -7/Factory L-31 Rogue | x3 | -7/Factory Mass Driver | x2 | -7/Factory Mass Driver | x2 | -7/Factory Mass Driver | x2 | -7/Factory Alien Tech Used ----------------- None Achievements -------------- Executioner Challenges ------------ None RPGLIKE | -11 -10 -10 -10 -9 -8 -7 --------- Run | Scr Mat Min Exi Min Mat Fac Levels Raised 13 | . 1 1 1 1 5 4 XP Earned 23448 | 3000 2055 2257 350 2460 7088 6238 XP Spent 20000 | 1800 900 500 . . 5700 11100 Upgrades 18 | 3 2 1 . . 6 6 Propulsion Slot 1 | 1 . . . . . . Utility Slot 7 | . . 1 . . 3 3 Weapon Slot 6 | 2 . . . . 1 3 Ranged Accuracy 4 | . 2 . . . 2 . Protomatter Created 959 | . 207 50 . 7 442 253 Integrity Restored 1652 | . 331 123 . 173 432 593 Core 1374 | . 268 94 . 140 358 514 Parts 278 | . 63 29 . 33 74 79 Protomatter Decayed 561 | . 93 7 . 62 348 51 Game ------ Seed ArcSurveybotModule Manual? 0 Play Time 01:02:09 Cumulative 55.5 hours Start 2020.02.16 @ 20:44:02 End 2020.02.16 @ 21:45:35 Sessions 1 Manual Loads 0 Difficulty Rogue Special Mode Winter2019/RPGLIKE Game No. 58 Rogue 58 Adventurer 0 Explorer 0 Win Type - Total 0 Types 0/0/0/0/0/0/0 Lore% 22 Gallery% 29 Achievement% 29 Wizard Run 0 Options --------- ASCII 0 Keyboard 0 Movement Mouse Keybinds 0 Fullscreen 0 Font 32/SmallcapsGlow Map View 76x50 Tactical HUD 0 Map Filters NONE Filters NONE Steam 1 RUN: 9ee241da-8bbe-4fdd-a396-8599fd713d54